[Event "*** SCC Grand Prix: Titled Tuesday Blitz"]
[Site "Chess.com"]
[Date "2020.07.07"]
[Round "2"]
[White "Alopekos"]
[Black "exoticprincess"]
[Result "1-0"]
[WhiteElo "2350"]
[BlackElo "2777"]
[TimeControl "180+1"]
[EndTime "10:14:09 PDT"]
[Termination "Alopekos won by checkmate"]

1. e4 {[%clk 0:03:00.9]} 1... c6 {[%clk 0:02:58.3]} 2. d4 {[%clk 0:03:00.8]}
2... d5 {[%clk 0:02:59.2]} 3. Nd2 {[%clk 0:03:01.5]} 3... dxe4 {[%clk
0:02:57.4]} 4. Nxe4 {[%clk 0:03:02.4]} 4... Nf6 {[%clk 0:02:58.2]} 5. Nxf6+
{[%clk 0:03:02.1]} 5... exf6 {[%clk 0:02:59.1]} 6. Bc4 {[%clk 0:03:02.4]} 6...
Bd6 {[%clk 0:02:58.8]} 7. Qe2+ {[%clk 0:03:02.6]} 7... Kf8 {[%clk 0:02:57]} 8.
Nf3 {[%clk 0:03:00]} 8... Nd7 {[%clk 0:02:56.7]} 9. O-O {[%clk 0:02:56.9]} 9...
h5 {[%clk 0:02:56.8]} 10. Bb3 {[%clk 0:02:30.5]} 10... g6 {[%clk 0:02:49.7]} 11.
Qc4 {[%clk 0:02:11.5]} 11... Rh7 {[%clk 0:02:49.3]} 12. Nh4 {[%clk 0:02:02.2]}
12... Nb6 {[%clk 0:01:54.3]} 13. Nxg6+ {[%clk 0:02:01]} 13... Kg7 {[%clk
0:01:45.5]} 14. Qxf7# {[%clk 0:01:55.7]} 1-0

[Event "*** SCC Grand Prix: Titled Tuesday Blitz"]
[Site "Chess.com"]
[Date "2020.07.07"]
[Round "2"]
[White "arminmusovic"]
[Black "amintabatabaei"]
[Result "1-0"]
[WhiteElo "2597"]
[BlackElo "2921"]
[TimeControl "180+1"]
[EndTime "10:14:24 PDT"]
[Termination "arminmusovic won by resignation"]

1. a3 {[%clk 0:03:00.9]} 1... a6 {[%clk 0:02:59.8]} 2. Nc3 {[%clk 0:03:00.6]}
2... d5 {[%clk 0:02:58.8]} 3. e4 {[%clk 0:03:01.5]} 3... dxe4 {[%clk 0:02:57.2]}
4. Nxe4 {[%clk 0:03:01.9]} 4... Nf6 {[%clk 0:02:58.1]} 5. Ng3 {[%clk 0:03:02.3]}
5... e5 {[%clk 0:02:56.6]} 6. Bc4 {[%clk 0:03:02.5]} 6... Nc6 {[%clk 0:02:52.7]}
7. d3 {[%clk 0:03:02.8]} 7... Bd6 {[%clk 0:02:51.5]} 8. N1e2 {[%clk 0:03:02.2]}
8... O-O {[%clk 0:02:51.7]} 9. O-O {[%clk 0:03:02.7]} 9... b5 {[%clk 0:02:50.8]}
10. Ba2 {[%clk 0:03:03.1]} 10... Re8 {[%clk 0:02:48.9]} 11. Ne4 {[%clk
0:03:02.8]} 11... Nxe4 {[%clk 0:02:42.7]} 12. dxe4 {[%clk 0:03:03.7]} 12... Be6
{[%clk 0:02:42.8]} 13. Be3 {[%clk 0:02:59.9]} 13... Bxa2 {[%clk 0:02:42.5]} 14.
Rxa2 {[%clk 0:03:00.8]} 14... Ne7 {[%clk 0:02:41.1]} 15. c4 {[%clk 0:02:58.4]}
15... c6 {[%clk 0:02:39.6]} 16. b4 {[%clk 0:02:56.4]} 16... Ng6 {[%clk 0:02:39]}
17. Rd2 {[%clk 0:02:55.8]} 17... Bxb4 {[%clk 0:02:15.7]} 18. Rxd8 {[%clk
0:02:53.1]} 18... Raxd8 {[%clk 0:02:16.6]} 19. axb4 {[%clk 0:02:51]} 19... Rxd1
{[%clk 0:02:16.1]} 20. Rxd1 {[%clk 0:02:51.9]} 20... bxc4 {[%clk 0:02:13.1]} 21.
Rc1 {[%clk 0:02:50.7]} 21... Rd8 {[%clk 0:02:13.7]} 22. g3 {[%clk 0:02:50.2]}
22... Ne7 {[%clk 0:02:08.6]} 23. Rxc4 {[%clk 0:02:49.9]} 23... f6 {[%clk
0:02:09]} 24. Bc5 {[%clk 0:02:48.1]} 24... Nc8 {[%clk 0:02:09.3]} 25. Kg2 {[%clk
0:02:46.3]} 25... Kf7 {[%clk 0:02:09.2]} 26. f4 {[%clk 0:02:44.9]} 26... g6
{[%clk 0:02:07.8]} 27. Rc2 {[%clk 0:02:43.9]} 27... Ke6 {[%clk 0:02:06.3]} 28.
Ra2 {[%clk 0:02:44]} 28... f5 {[%clk 0:02:02.4]} 29. exf5+ {[%clk 0:02:42.8]}
29... Kxf5 {[%clk 0:02:03.3]} 30. fxe5 {[%clk 0:02:43.1]} 30... Kxe5 {[%clk
0:02:03.5]} 31. Rxa6 {[%clk 0:02:43]} 31... Rd2 {[%clk 0:02:03.8]} 32. Kf2
{[%clk 0:02:43.3]} 32... Nd6 {[%clk 0:02:03]} 33. Bxd6+ {[%clk 0:02:42.7]} 33...
Rxd6 {[%clk 0:02:02.5]} 34. Ke3 {[%clk 0:02:35]} 34... Kd5 {[%clk 0:02:00.4]}
35. Nd4 {[%clk 0:02:31.5]} 35... Rf6 {[%clk 0:01:54.1]} 36. Rxc6 {[%clk
0:02:30.6]} 1-0

[Event "*** SCC Grand Prix: Titled Tuesday Blitz"]
[Site "Chess.com"]
[Date "2020.07.07"]
[Round "2"]
[White "krzyzan94"]
[Black "gui_borba"]
[Result "1-0"]
[WhiteElo "2672"]
[BlackElo "2337"]
[TimeControl "180+1"]
[EndTime "10:14:28 PDT"]
[Termination "krzyzan94 won by resignation"]

1. d4 {[%clk 0:03:00.9]} 1... Nf6 {[%clk 0:02:59.8]} 2. Bf4 {[%clk 0:03:00.6]}
2... d5 {[%clk 0:02:59.2]} 3. e3 {[%clk 0:03:00.6]} 3... e6 {[%clk 0:02:59.7]}
4. Nf3 {[%clk 0:03:00.8]} 4... c5 {[%clk 0:03:00.2]} 5. Nbd2 {[%clk 0:03:01.1]}
5... Bd6 {[%clk 0:03:00.8]} 6. c3 {[%clk 0:03:01]} 6... O-O {[%clk 0:03:00.6]}
7. Bg3 {[%clk 0:03:00.4]} 7... Qc7 {[%clk 0:03:01.2]} 8. Ne5 {[%clk 0:03:00.3]}
8... Nbd7 {[%clk 0:02:59.6]} 9. f4 {[%clk 0:03:00.8]} 9... b6 {[%clk 0:02:59.5]}
10. Bd3 {[%clk 0:03:00.7]} 10... Bb7 {[%clk 0:02:59.7]} 11. O-O {[%clk
0:02:13.2]} 11... Ne4 {[%clk 0:02:58.5]} 12. Bxe4 {[%clk 0:02:10.2]} 12... dxe4
{[%clk 0:02:59.4]} 13. Ndc4 {[%clk 0:02:06.1]} 13... Nf6 {[%clk 0:02:54.1]} 14.
Nxd6 {[%clk 0:02:05.1]} 14... Qxd6 {[%clk 0:02:55]} 15. f5 {[%clk 0:02:06]}
15... exf5 {[%clk 0:02:36.9]} 16. Ng6 {[%clk 0:01:49.6]} 16... Qe6 {[%clk
0:02:36.4]} 17. Nxf8 {[%clk 0:01:49.5]} 17... Rxf8 {[%clk 0:02:37.3]} 18. dxc5
{[%clk 0:01:50.3]} 18... bxc5 {[%clk 0:02:37.1]} 19. Qd6 {[%clk 0:01:50.9]}
19... Nd5 {[%clk 0:02:28.7]} 20. Qxc5 {[%clk 0:01:49.7]} 20... Rc8 {[%clk
0:02:26.8]} 21. Qxa7 {[%clk 0:01:49.3]} 21... g5 {[%clk 0:02:24]} 22. Qxb7
{[%clk 0:01:48.8]} 22... Nxe3 {[%clk 0:02:21.7]} 23. Rfe1 {[%clk 0:01:44.6]}
23... f4 {[%clk 0:02:21.8]} 24. Bf2 {[%clk 0:01:40.6]} 24... Nd5 {[%clk
0:02:22]} 25. Rad1 {[%clk 0:01:38.9]} 25... Rd8 {[%clk 0:02:17.8]} 26. c4 {[%clk
0:01:38.8]} 1-0

[Event "*** SCC Grand Prix: Titled Tuesday Blitz"]
[Site "Chess.com"]
[Date "2020.07.07"]
[Round "2"]
[White "SerGo055"]
[Black "tteshan"]
[Result "1-0"]
[WhiteElo "2550"]
[BlackElo "2305"]
[TimeControl "180+1"]
[EndTime "10:14:34 PDT"]
[Termination "SerGo055 won by resignation"]

1. d4 {[%clk 0:03:00.9]} 1... Nf6 {[%clk 0:02:59.2]} 2. Nf3 {[%clk 0:02:59.8]}
2... g6 {[%clk 0:02:57.1]} 3. c4 {[%clk 0:02:59.9]} 3... Bg7 {[%clk 0:02:56.9]}
4. Nc3 {[%clk 0:03:00.3]} 4... d6 {[%clk 0:02:55.2]} 5. Bg5 {[%clk 0:02:59.5]}
5... h6 {[%clk 0:02:52.7]} 6. Bf4 {[%clk 0:02:58.9]} 6... O-O {[%clk 0:02:51.9]}
7. Qd2 {[%clk 0:02:58.8]} 7... Kh7 {[%clk 0:02:50.6]} 8. h4 {[%clk 0:02:58.2]}
8... Nc6 {[%clk 0:02:46]} 9. d5 {[%clk 0:02:56.8]} 9... Nb8 {[%clk 0:02:44.2]}
10. e4 {[%clk 0:02:56.6]} 10... e5 {[%clk 0:02:43.1]} 11. dxe6 {[%clk 0:02:56]}
11... Bxe6 {[%clk 0:02:42.6]} 12. Be2 {[%clk 0:02:53.9]} 12... Nc6 {[%clk
0:02:39.8]} 13. Ng5+ {[%clk 0:02:53.5]} 13... hxg5 {[%clk 0:02:15.6]} 14. hxg5+
{[%clk 0:02:54.4]} 14... Nh5 {[%clk 0:02:04.7]} 15. g4 {[%clk 0:02:51.8]} 15...
Be5 {[%clk 0:01:53.1]} 16. gxh5 {[%clk 0:02:49.5]} 16... Bxf4 {[%clk 0:01:52.5]}
17. Qxf4 {[%clk 0:02:45.3]} 17... f6 {[%clk 0:01:43.1]} 18. hxg6+ {[%clk
0:02:43.5]} 18... Kxg6 {[%clk 0:01:40.3]} 19. Rh6+ {[%clk 0:02:16.2]} 19... Kg7
{[%clk 0:01:37.2]} 20. gxf6+ {[%clk 0:02:16.2]} 20... Rxf6 {[%clk 0:01:33.1]}
21. Qg5+ {[%clk 0:02:15.9]} 21... Kf7 {[%clk 0:01:25.7]} 22. Bh5+ {[%clk
0:02:16.1]} 1-0

[Event "*** SCC Grand Prix: Titled Tuesday Blitz"]
[Site "Chess.com"]
[Date "2020.07.07"]
[Round "2"]
[White "Skatchkov_V"]
[Black "barbara25"]
[Result "1-0"]
[WhiteElo "2548"]
[BlackElo "2303"]
[TimeControl "180+1"]
[EndTime "10:14:42 PDT"]
[Termination "Skatchkov_V won by resignation"]

1. Nf3 {[%clk 0:03:00.5]} 1... Nf6 {[%clk 0:02:58.9]} 2. g3 {[%clk 0:03:01]}
2... e6 {[%clk 0:02:59.1]} 3. Bg2 {[%clk 0:03:01.1]} 3... d5 {[%clk 0:02:59.6]}
4. O-O {[%clk 0:03:01.5]} 4... c5 {[%clk 0:03:00.1]} 5. d3 {[%clk 0:03:01.9]}
5... Nc6 {[%clk 0:03:00.7]} 6. Nbd2 {[%clk 0:03:02.2]} 6... Bd6 {[%clk
0:03:01.1]} 7. Re1 {[%clk 0:03:02.1]} 7... Qc7 {[%clk 0:03:01.5]} 8. e4 {[%clk
0:03:02]} 8... O-O {[%clk 0:03:01.4]} 9. c3 {[%clk 0:02:57]} 9... Rd8 {[%clk
0:03:00.3]} 10. Qc2 {[%clk 0:02:57]} 10... b6 {[%clk 0:02:59.2]} 11. b3 {[%clk
0:02:56.3]} 11... Bb7 {[%clk 0:02:58.5]} 12. Bb2 {[%clk 0:02:56.8]} 12... e5
{[%clk 0:02:58.7]} 13. exd5 {[%clk 0:02:54.6]} 13... Nxd5 {[%clk 0:02:57.3]} 14.
Nc4 {[%clk 0:02:53.4]} 14... Re8 {[%clk 0:02:53.1]} 15. Nxd6 {[%clk 0:02:51.3]}
15... Qxd6 {[%clk 0:02:53]} 16. Rad1 {[%clk 0:02:50.4]} 16... Rad8 {[%clk
0:02:51.8]} 17. d4 {[%clk 0:02:50.4]} 17... exd4 {[%clk 0:02:49.4]} 18. Rxe8+
{[%clk 0:02:49.7]} 18... Rxe8 {[%clk 0:02:48.3]} 19. cxd4 {[%clk 0:02:50.6]}
19... cxd4 {[%clk 0:02:42]} 20. Nxd4 {[%clk 0:02:49.8]} 20... Nxd4 {[%clk
0:02:34.3]} 21. Bxd4 {[%clk 0:02:39.6]} 21... Qe6 {[%clk 0:02:16.5]} 22. Qd2
{[%clk 0:02:23.2]} 22... Qe2 {[%clk 0:01:52.1]} 23. Qxe2 {[%clk 0:02:12.9]}
23... Rxe2 {[%clk 0:01:50.3]} 24. Be3 {[%clk 0:02:12.4]} 1-0

[Event "*** SCC Grand Prix: Titled Tuesday Blitz"]
[Site "Chess.com"]
[Date "2020.07.07"]
[Round "2"]
[White "davigator"]
[Black "Karateloru"]
[Result "0-1"]
[WhiteElo "2292"]
[BlackElo "2643"]
[TimeControl "180+1"]
[EndTime "10:14:52 PDT"]
[Termination "Karateloru won by resignation"]

1. e4 {[%clk 0:03:00.9]} 1... c5 {[%clk 0:02:59.4]} 2. Nf3 {[%clk 0:03:00.4]}
2... e6 {[%clk 0:02:58.9]} 3. d4 {[%clk 0:03:00.4]} 3... cxd4 {[%clk 0:02:59.4]}
4. Nxd4 {[%clk 0:03:00.5]} 4... Bc5 {[%clk 0:02:59.5]} 5. Nb3 {[%clk 0:02:58.7]}
5... Bb6 {[%clk 0:02:59.6]} 6. Qg4 {[%clk 0:02:49.3]} 6... Nf6 {[%clk
0:02:58.4]} 7. Qxg7 {[%clk 0:02:48.1]} 7... Rg8 {[%clk 0:02:58.2]} 8. Qh6 {[%clk
0:02:48.1]} 8... Bxf2+ {[%clk 0:02:58.2]} 9. Kd1 {[%clk 0:02:47.6]} 9... Rg6
{[%clk 0:02:56.5]} 10. Qh3 {[%clk 0:02:43]} 10... Nxe4 {[%clk 0:02:51.1]} 11.
Qxh7 {[%clk 0:02:40.8]} 11... d5 {[%clk 0:02:29.3]} 12. Nc3 {[%clk 0:02:38.6]}
12... Nxc3+ {[%clk 0:02:27.5]} 13. bxc3 {[%clk 0:02:38]} 13... Nc6 {[%clk
0:02:27.3]} 14. Ba3 {[%clk 0:02:34]} 14... Qf6 {[%clk 0:02:25.4]} 15. Bd3 {[%clk
0:02:31.6]} 15... Rxg2 {[%clk 0:02:21.6]} 16. Qh3 {[%clk 0:02:25.6]} 16... Rg8
{[%clk 0:02:18.3]} 17. Qf1 {[%clk 0:02:10.9]} 17... e5 {[%clk 0:02:14.3]} 18.
Kc1 {[%clk 0:02:10.7]} 18... e4 {[%clk 0:02:09.4]} 19. Be2 {[%clk 0:02:09.8]}
19... e3 {[%clk 0:02:06.7]} 20. Kb2 {[%clk 0:02:07.4]} 20... Rh8 {[%clk
0:02:01.1]} 21. h3 {[%clk 0:02:05.1]} 21... d4 {[%clk 0:01:58.1]} 22. Rd1 {[%clk
0:02:00.4]} 22... dxc3+ {[%clk 0:01:53]} 23. Kb1 {[%clk 0:01:59.2]} 23... Be6
{[%clk 0:01:53.1]} 24. Bf3 {[%clk 0:01:56.3]} 24... Qxf3 {[%clk 0:01:52.2]} 25.
Qb5 {[%clk 0:01:55.2]} 25... e2 {[%clk 0:01:49.3]} 26. Qxb7 {[%clk 0:01:53.8]}
26... exd1=Q+ {[%clk 0:01:48.2]} 27. Rxd1 {[%clk 0:01:53.2]} 27... Qxd1+ {[%clk
0:01:49.1]} 28. Bc1 {[%clk 0:01:51.1]} 28... Rc8 {[%clk 0:01:47.5]} 0-1

[Event "*** SCC Grand Prix: Titled Tuesday Blitz"]
[Site "Chess.com"]
[Date "2020.07.07"]
[Round "2"]
[White "JozefKneht"]
[Black "Sam_ChessMood"]
[Result "0-1"]
[WhiteElo "2440"]
[BlackElo "2840"]
[TimeControl "180+1"]
[EndTime "10:14:53 PDT"]
[Termination "Sam_ChessMood won by resignation"]

1. e4 {[%clk 0:03:00.9]} 1... c6 {[%clk 0:03:00.3]} 2. d4 {[%clk 0:03:00.3]}
2... d5 {[%clk 0:03:01.2]} 3. Nc3 {[%clk 0:03:00.7]} 3... dxe4 {[%clk
0:03:01.1]} 4. Nxe4 {[%clk 0:03:01.6]} 4... Bf5 {[%clk 0:03:01.4]} 5. Ng3 {[%clk
0:03:01.2]} 5... Bg6 {[%clk 0:03:01.8]} 6. h4 {[%clk 0:03:02.1]} 6... h6 {[%clk
0:03:01.8]} 7. Nf3 {[%clk 0:03:02.5]} 7... e6 {[%clk 0:03:01.8]} 8. Ne5 {[%clk
0:03:01.3]} 8... Bh7 {[%clk 0:03:02.1]} 9. Bd3 {[%clk 0:03:01.8]} 9... Bxd3
{[%clk 0:03:02.1]} 10. Qxd3 {[%clk 0:03:02.7]} 10... Nd7 {[%clk 0:03:01.1]} 11.
Bf4 {[%clk 0:03:02.3]} 11... Qa5+ {[%clk 0:02:54.5]} 12. c3 {[%clk 0:03:01.7]}
12... Ngf6 {[%clk 0:02:54.7]} 13. Qe2 {[%clk 0:03:01.6]} 13... Be7 {[%clk
0:02:43.8]} 14. Nh5 {[%clk 0:02:57.2]} 14... Nxh5 {[%clk 0:02:27.8]} 15. Qxh5
{[%clk 0:02:55.7]} 15... Nxe5 {[%clk 0:02:12.3]} 16. Bxe5 {[%clk 0:02:55.1]}
16... Bf6 {[%clk 0:02:03.8]} 17. Qe2 {[%clk 0:02:25.3]} 17... Bxe5 {[%clk
0:01:56.6]} 18. Qxe5 {[%clk 0:02:23.4]} 18... Qxe5+ {[%clk 0:01:56.1]} 19. dxe5
{[%clk 0:02:24.3]} 19... Rd8 {[%clk 0:01:49.4]} 20. Rd1 {[%clk 0:02:20.9]} 20...
Rd5 {[%clk 0:01:48.8]} 21. f4 {[%clk 0:02:20.6]} 21... Ke7 {[%clk 0:01:47.8]}
22. Ke2 {[%clk 0:02:19.5]} 22... Rhd8 {[%clk 0:01:47.3]} 23. h5 {[%clk
0:02:14.1]} 23... f6 {[%clk 0:01:39.9]} 24. exf6+ {[%clk 0:02:12.9]} 24... Kxf6
{[%clk 0:01:40]} 25. g4 {[%clk 0:02:09.9]} 25... Rxd1 {[%clk 0:01:39.7]} 26.
Rxd1 {[%clk 0:02:09.3]} 26... Rxd1 {[%clk 0:01:39.9]} 27. Kxd1 {[%clk
0:02:09.5]} 27... e5 {[%clk 0:01:40.5]} 0-1

[Event "*** SCC Grand Prix: Titled Tuesday Blitz"]
[Site "Chess.com"]
[Date "2020.07.07"]
[Round "2"]
[White "Sashadav97"]
[Black "hanzo_hasashi1"]
[Result "0-1"]
[WhiteElo "2542"]
[BlackElo "2833"]
[TimeControl "180+1"]
[EndTime "10:14:55 PDT"]
[Termination "hanzo_hasashi1 won by resignation"]

1. d4 {[%clk 0:03:00.9]} 1... Nf6 {[%clk 0:02:58.9]} 2. c4 {[%clk 0:02:56.7]}
2... e6 {[%clk 0:02:59.2]} 3. Nc3 {[%clk 0:02:51.6]} 3... Bb4 {[%clk 0:02:58]}
4. e3 {[%clk 0:02:52]} 4... O-O {[%clk 0:02:56.9]} 5. Bd3 {[%clk 0:02:52.2]}
5... d5 {[%clk 0:02:54.8]} 6. a3 {[%clk 0:02:51.7]} 6... Bxc3+ {[%clk
0:02:51.6]} 7. bxc3 {[%clk 0:02:52.6]} 7... c5 {[%clk 0:02:48.4]} 8. cxd5 {[%clk
0:02:52.3]} 8... exd5 {[%clk 0:02:46]} 9. Ne2 {[%clk 0:02:51.9]} 9... b6 {[%clk
0:02:39.4]} 10. O-O {[%clk 0:02:51.6]} 10... Ba6 {[%clk 0:02:39.7]} 11. f3
{[%clk 0:02:50.4]} 11... Re8 {[%clk 0:02:38.1]} 12. Ng3 {[%clk 0:02:46.2]} 12...
h5 {[%clk 0:02:28.8]} 13. e4 {[%clk 0:02:03.1]} 13... cxd4 {[%clk 0:02:22.7]}
14. cxd4 {[%clk 0:02:01.7]} 14... dxe4 {[%clk 0:02:22.5]} 15. Bxa6 {[%clk
0:02:01.7]} 15... Nxa6 {[%clk 0:02:21.9]} 16. fxe4 {[%clk 0:01:59.1]} 16... Nxe4
{[%clk 0:02:21]} 17. Nxh5 {[%clk 0:01:45.6]} 17... g6 {[%clk 0:02:12.3]} 18. Bh6
{[%clk 0:01:15.7]} 18... gxh5 {[%clk 0:02:07]} 19. Qxh5 {[%clk 0:01:16.6]} 19...
Qxd4+ {[%clk 0:02:04.2]} 0-1

[Event "*** SCC Grand Prix: Titled Tuesday Blitz"]
[Site "Chess.com"]
[Date "2020.07.07"]
[Round "2"]
[White "Irishchessman16"]
[Black "2008king"]
[Result "0-1"]
[WhiteElo "2437"]
[BlackElo "2252"]
[TimeControl "180+1"]
[EndTime "10:15:00 PDT"]
[Termination "2008king won by resignation"]

1. e4 {[%clk 0:03:00.9]} 1... e5 {[%clk 0:02:59.6]} 2. Nf3 {[%clk 0:03:00.4]}
2... Nc6 {[%clk 0:02:58.6]} 3. d4 {[%clk 0:02:59.6]} 3... exd4 {[%clk
0:02:56.3]} 4. Nxd4 {[%clk 0:03:00.5]} 4... Nf6 {[%clk 0:02:55.4]} 5. Nxc6
{[%clk 0:02:59.8]} 5... bxc6 {[%clk 0:02:56.3]} 6. e5 {[%clk 0:03:00.2]} 6...
Qe7 {[%clk 0:02:55.7]} 7. Qe2 {[%clk 0:03:00.9]} 7... Nd5 {[%clk 0:02:54.8]} 8.
g3 {[%clk 0:03:01.6]} 8... g6 {[%clk 0:02:54]} 9. c4 {[%clk 0:03:01.3]} 9... Ba6
{[%clk 0:02:53.7]} 10. b3 {[%clk 0:02:57]} 10... Bg7 {[%clk 0:02:53.5]} 11. Bb2
{[%clk 0:02:57]} 11... O-O {[%clk 0:02:53.8]} 12. Bg2 {[%clk 0:02:54.2]} 12...
Rae8 {[%clk 0:02:52.9]} 13. O-O {[%clk 0:02:54.2]} 13... Bxe5 {[%clk 0:02:52.5]}
14. Bxe5 {[%clk 0:02:54]} 14... Qxe5 {[%clk 0:02:53.4]} 15. Qxe5 {[%clk
0:02:54]} 15... Rxe5 {[%clk 0:02:54.3]} 16. cxd5 {[%clk 0:02:52.7]} 16... Bxf1
{[%clk 0:02:55.2]} 17. Kxf1 {[%clk 0:02:51.6]} 17... cxd5 {[%clk 0:02:55.2]} 18.
Na3 {[%clk 0:02:50.6]} 18... c6 {[%clk 0:02:54.6]} 19. Rd1 {[%clk 0:02:47.9]}
19... Rfe8 {[%clk 0:02:54.7]} 20. Bf3 {[%clk 0:02:46.4]} 20... f5 {[%clk
0:02:54.1]} 21. Nc2 {[%clk 0:02:37.4]} 21... Kf7 {[%clk 0:02:52.6]} 22. Rd4
{[%clk 0:02:35.7]} 22... Kf6 {[%clk 0:02:52.6]} 23. Ra4 {[%clk 0:02:34.9]} 23...
Ra8 {[%clk 0:02:45.3]} 24. h4 {[%clk 0:02:33.2]} 24... h6 {[%clk 0:02:43.6]} 25.
Ra6 {[%clk 0:02:20.9]} 25... g5 {[%clk 0:02:40.6]} 26. Nb4 {[%clk 0:02:20.3]}
26... Ke7 {[%clk 0:02:37]} 27. Nxc6+ {[%clk 0:01:59.2]} 27... dxc6 {[%clk
0:02:33.4]} 28. Rxc6 {[%clk 0:01:59.1]} 28... g4 {[%clk 0:02:23.9]} 29. Bg2
{[%clk 0:01:48.1]} 29... h5 {[%clk 0:02:23.5]} 30. Rc7+ {[%clk 0:01:45.7]} 30...
Kd6 {[%clk 0:02:22.9]} 31. Rh7 {[%clk 0:01:39.3]} 31... Rae8 {[%clk 0:02:21.8]}
32. Kg1 {[%clk 0:01:38.7]} 32... Re1+ {[%clk 0:02:19.1]} 33. Kh2 {[%clk
0:01:38.2]} 33... R8e2 {[%clk 0:02:18.5]} 34. Rxa7 {[%clk 0:01:25.6]} 34... Rxf2
{[%clk 0:02:16.9]} 0-1

[Event "*** SCC Grand Prix: Titled Tuesday Blitz"]
[Site "Chess.com"]
[Date "2020.07.07"]
[Round "2"]
[White "Smile2005"]
[Black "MihailNik"]
[Result "0-1"]
[WhiteElo "2478"]
[BlackElo "2690"]
[TimeControl "180+1"]
[EndTime "10:15:01 PDT"]
[Termination "MihailNik won by resignation"]

1. d4 {[%clk 0:03:00.9]} 1... d5 {[%clk 0:02:59.6]} 2. c4 {[%clk 0:03:00.2]}
2... c6 {[%clk 0:02:59.7]} 3. cxd5 {[%clk 0:02:55.6]} 3... cxd5 {[%clk
0:03:00.6]} 4. Nc3 {[%clk 0:02:54.7]} 4... Nf6 {[%clk 0:03:00.4]} 5. Bf4 {[%clk
0:02:54]} 5... Nc6 {[%clk 0:03:00.4]} 6. e3 {[%clk 0:02:54]} 6... e6 {[%clk
0:03:00.9]} 7. Nf3 {[%clk 0:02:52.6]} 7... Be7 {[%clk 0:03:01]} 8. Bd3 {[%clk
0:02:51]} 8... Bd7 {[%clk 0:03:01.4]} 9. h3 {[%clk 0:02:50.7]} 9... O-O {[%clk
0:03:01.6]} 10. O-O {[%clk 0:02:50.4]} 10... Qb6 {[%clk 0:03:01.4]} 11. Qe2
{[%clk 0:02:46.7]} 11... Rfc8 {[%clk 0:03:00.5]} 12. Rac1 {[%clk 0:02:46.4]}
12... Qd8 {[%clk 0:02:57.1]} 13. Ne5 {[%clk 0:02:46.3]} 13... Be8 {[%clk
0:02:57.2]} 14. Nxc6 {[%clk 0:02:35.9]} 14... Rxc6 {[%clk 0:02:48.8]} 15. Bb5
{[%clk 0:02:32.7]} 15... Rcc8 {[%clk 0:02:48.2]} 16. Bxe8 {[%clk 0:02:32.3]}
16... Nxe8 {[%clk 0:02:49.1]} 17. Na4 {[%clk 0:02:28.1]} 17... Qa5 {[%clk
0:02:38.8]} 18. b3 {[%clk 0:02:22.1]} 18... Ba3 {[%clk 0:02:33.7]} 19. Rxc8
{[%clk 0:02:13.9]} 19... Rxc8 {[%clk 0:02:34.6]} 20. e4 {[%clk 0:02:13.1]} 20...
Nf6 {[%clk 0:02:24.9]} 21. exd5 {[%clk 0:02:07.6]} 21... Nxd5 {[%clk 0:02:25.8]}
22. Be5 {[%clk 0:02:01.6]} 22... b6 {[%clk 0:01:40.2]} 23. Qg4 {[%clk
0:01:55.5]} 23... Bf8 {[%clk 0:01:39.5]} 24. f4 {[%clk 0:01:44.8]} 24... Ne3
{[%clk 0:01:36]} 0-1

[Event "*** SCC Grand Prix: Titled Tuesday Blitz"]
[Site "Chess.com"]
[Date "2020.07.07"]
[Round "2"]
[White "alexsergeyev"]
[Black "pfalcon1949"]
[Result "1-0"]
[WhiteElo "2363"]
[BlackElo "1938"]
[TimeControl "180+1"]
[EndTime "10:15:09 PDT"]
[Termination "alexsergeyev won by resignation"]

1. e4 {[%clk 0:03:00.9]} 1... e6 {[%clk 0:02:59.4]} 2. d4 {[%clk 0:02:59.7]}
2... d5 {[%clk 0:02:59.5]} 3. Nc3 {[%clk 0:02:59.6]} 3... Bb4 {[%clk 0:02:58.7]}
4. Ne2 {[%clk 0:02:59.2]} 4... dxe4 {[%clk 0:02:55.5]} 5. a3 {[%clk 0:02:57.5]}
5... Bxc3+ {[%clk 0:02:56]} 6. Nxc3 {[%clk 0:02:56.6]} 6... Nc6 {[%clk
0:02:56.9]} 7. Bb5 {[%clk 0:02:54.3]} 7... Ne7 {[%clk 0:02:56.9]} 8. Nxe4 {[%clk
0:02:52.2]} 8... O-O {[%clk 0:02:54]} 9. c3 {[%clk 0:02:51.3]} 9... e5 {[%clk
0:02:53.7]} 10. dxe5 {[%clk 0:02:47.7]} 10... Nxe5 {[%clk 0:02:52.4]} 11. Qxd8
{[%clk 0:02:45.9]} 11... Rxd8 {[%clk 0:02:51.4]} 12. O-O {[%clk 0:02:44.6]}
12... c6 {[%clk 0:02:47.9]} 13. Be2 {[%clk 0:02:42.4]} 13... Be6 {[%clk
0:02:46.6]} 14. Bf4 {[%clk 0:02:38.9]} 14... N7g6 {[%clk 0:02:42.8]} 15. Bg3
{[%clk 0:02:37.4]} 15... Nc4 {[%clk 0:02:41.5]} 16. Nc5 {[%clk 0:02:24.6]} 16...
Rd2 {[%clk 0:02:26.4]} 17. Rfe1 {[%clk 0:02:15.9]} 17... Bd5 {[%clk 0:02:16.5]}
18. b3 {[%clk 0:02:09.9]} 18... Na5 {[%clk 0:02:12.5]} 19. c4 {[%clk 0:02:09.6]}
19... Be6 {[%clk 0:02:06.7]} 20. Nxe6 {[%clk 0:02:08.6]} 20... fxe6 {[%clk
0:02:07.6]} 21. b4 {[%clk 0:02:05.1]} 21... Nb3 {[%clk 0:02:05.9]} 22. Rad1
{[%clk 0:02:03.5]} 22... Rad8 {[%clk 0:02:04.3]} 23. h4 {[%clk 0:01:53.7]} 23...
e5 {[%clk 0:01:56.5]} 24. c5 {[%clk 0:01:47.7]} 24... Nf4 {[%clk 0:01:55]} 25.
Bc4+ {[%clk 0:01:46.7]} 25... Kf8 {[%clk 0:01:44]} 26. Bxb3 {[%clk 0:01:45]} 1-0